bitfinex-derivatives/quotes_BTCF0:USTF0_20251118
["timestamp","ask_amount","ask_price","bid_price","bid_amount"]
[1763479960660,1.5,93024.0,93010.0,0.00219803]
[1763479960857,0.1076056,93019.0,93010.0,0.00219803]
[1763479961060,0.10588,93009.0,93008.0,0.0001613]
[1763479961256,1.5,93024.0,93010.0,0.00219803]
[1763479961257,0.107601,93023.0,93010.0,0.00219803]
[1763479961457,0.1076058,93019.0,93010.0,0.00219803]
[1763479961660,1.5,93024.0,93010.0,0.00219803]
[1763479963367,0.1076129,93013.0,93010.0,0.00219803]
[1763479964162,0.213497,93009.0,93008.0,0.0001613]
[1763479964361,0.1076314,92997.0,92987.0,0.08646395]
[1763479964554,1.5,93024.0,92990.0,0.00219803]
[1763479964758,0.1076116,93014.0,93010.0,0.24242189]
[1763479965159,1.5,93024.0,93010.0,0.24242189]
[1763479965160,0.1076036,93021.0,93010.0,0.24242189]
[1763479965355,0.10761,93016.0,93010.0,0.24461992]
[1763479965555,1.5,93024.0,93010.0,0.00219803]
[1763479965556,0.1076126,93013.0,93010.0,0.00219803]
[1763479965761,0.1076019,93023.0,93006.0,0.24258319]
[1763479965762,0.2134993,93007.0,93006.0,0.0001613]
[1763479966170,0.10588,93007.0,93006.0,0.0001613]
[1763479966576,0.10588,93007.0,92954.0,0.1076801]
[1763479966577,0.10588,92998.0,92980.0,0.24242189]
[1763479966761,0.1076384,92991.0,92980.0,0.25616985]
[1763479966962,0.10588,92979.0,92978.0,0.08659286]
[1763479967172,0.10588,92957.0,92920.0,0.37887983]
[1763479967469,0.1076783,92957.0,92926.0,0.107713]
[1763479967663,0.00016139,92951.0,92932.0,0.00016139]
[1763479967971,0.00016139,92951.0,92940.0,0.00219803]
[1763479968360,0.00010363,92950.0,92949.0,0.10821]
[1763479969070,0.00010363,92950.0,92937.0,0.1076993]
[1763479969367,0.00010363,92950.0,92940.0,0.00219803]
[1763479971161,0.1076865,92949.0,92940.0,0.00219803]
[1763479971367,0.10588,92941.0,92940.0,0.00219803]
[1763479971564,0.10588,92941.0,92932.0,0.01159909]
[1763479971761,0.10588,92933.0,92932.0,0.00016139]
[1763479972470,0.10588,92933.0,92923.0,0.0882121]
[1763479972471,0.10588,92927.0,92926.0,0.00026903]
[1763479972665,0.1077031,92935.0,92930.0,0.00219803]
[1763479972970,0.10588,92931.0,92930.0,0.00219803]
[1763479973370,0.03138,92943.0,92930.0,0.00219803]
[1763479973573,0.1077046,92934.0,92930.0,0.00219803]
[1763479974059,0.10588,92927.0,92926.0,0.00026903]
[1763479974264,0.00010363,92950.0,92930.0,0.00219803]
[1763479974466,0.1076985,92939.0,92930.0,0.00219803]
[1763479974860,0.1076869,92949.0,92930.0,0.00219803]
[1763479975063,0.00010363,92950.0,92930.0,0.00219803]
[1763479975266,0.00010363,92950.0,92938.0,0.1076984]
[1763479975563,0.00010363,92950.0,92940.0,0.00219803]
[1763479975873,0.1076865,92949.0,92940.0,0.00219803]
[1763479976075,0.1076894,92947.0,92940.0,0.00219803]
[1763479976269,0.10588,92941.0,92940.0,0.00219803]
[1763479976568,0.1076888,92948.0,92940.0,0.00219803]
[1763479976765,0.107688,92948.0,92940.0,0.00219803]
[1763479977161,0.00010363,92950.0,92940.0,0.00219803]
[1763479977568,0.10317,92941.0,92940.0,0.00219803]
[1763479977766,0.107695,92942.0,92940.0,0.00219803]
[1763479978467,0.00010363,92950.0,92940.0,0.00219803]
[1763479978468,0.1076937,92943.0,92940.0,0.00219803]
[1763479978673,0.10246,92941.0,92940.0,0.00219803]
[1763479979072,0.00010363,92950.0,92940.0,0.00219803]
[1763479979563,0.1076865,92949.0,92940.0,0.00219803]
[1763479979768,0.1076902,92946.0,92940.0,0.00219803]
[1763479979963,0.00010363,92950.0,92940.0,0.00219803]
[1763479980173,0.1076926,92944.0,92940.0,0.00219803]
[1763479980372,0.00010363,92950.0,92949.0,0.10154]
[1763479980573,0.00010363,92950.0,92940.0,0.00016139]
[1763479980774,0.00010363,92950.0,92949.0,0.10154]
[1763479980973,0.3166,93022.0,92989.0,0.10154]
[1763479981166,0.61421451,93037.0,92967.0,0.0265]
[1763479981167,0.1603563,93001.0,93000.0,0.00219803]
[1763479981368,0.1075946,93029.0,93000.0,0.00219803]
[1763479981667,1.5,93028.0,93000.0,0.00219803]
[1763479981876,0.00016128,93023.0,93005.0,0.00016128]
[1763479982065,0.10246,93006.0,93005.0,0.00016128]
[1763479982371,0.26808,93008.0,92951.0,0.05647509]
[1763479982575,0.1076601,92972.0,92960.0,0.00219803]
[1763479982771,0.10246,92961.0,92949.0,0.01173093]
[1763479982974,5.565e-05,92971.0,92950.0,0.00219803]
[1763479983173,0.00016137,92970.0,92951.0,0.00016137]
[1763479983471,0.1135039,93012.0,92970.0,0.10154]
[1763479983672,0.1135039,93012.0,92980.0,0.00219803]
[1763479983979,0.1076458,92985.0,92980.0,0.00219803]
[1763479984175,0.00589,93012.0,92970.0,0.00219803]
[1763479984176,0.1076345,92994.0,92970.0,0.00219803]
[1763479984476,0.00589,93012.0,92973.0,0.00016137]
[1763479984477,0.1076511,92980.0,92973.0,0.00016137]
[1763479984664,0.10780017,92991.0,92973.0,0.00016137]
[1763479984866,0.1076421,92988.0,92980.0,0.00219803]
[1763479985067,0.00016137,92991.0,92980.0,0.00219803]
[1763479985262,0.1076493,92982.0,92980.0,0.00219803]
[1763479985468,0.00016137,92991.0,92980.0,0.00219803]
[1763479985671,0.00016137,92991.0,92990.0,0.05156]
[1763479985876,0.00016137,92991.0,92990.0,0.00219803]
[1763479986178,0.05289137,92991.0,92990.0,0.00219803]
[1763479986377,0.00016137,92991.0,92990.0,0.10373803]
[1763479986686,0.00016137,92991.0,92990.0,0.61137703]
[1763479986870,0.1075965,93027.0,92991.0,0.1076374]
[1763479987178,0.1075611,93058.0,93000.0,0.00219803]
[1763479987372,0.268,93059.0,93000.0,0.00219803]
[1763479987670,0.1076002,93024.0,93000.0,0.00219803]
[1763479987872,1.5,93024.0,93001.0,0.10753786]
[1763479988078,0.1076139,93012.0,93003.0,0.00016127]
[1763479988278,0.107608,93017.0,93003.0,0.00016127]
[1763479988577,0.00016046,93021.0,93010.0,0.00219803]
[1763479988779,0.10776366,93021.0,93010.0,0.24461399]
[1763479989083,0.1076044,93020.0,93010.0,0.24461399]
[1763479989483,0.10246,93004.0,93003.0,0.00016127]
[1763479989662,0.1076362,92993.0,92980.0,0.24241596]
[1763479989864,1.5,93024.0,92980.0,0.24241596]
[1763479989865,1.5,93024.0,92990.0,0.00219803]
[1763479990065,0.1076368,92992.0,92990.0,0.24461399]
[1763479990267,0.1076027,93021.0,92956.0,0.13352]
[1763479990268,0.107647,92983.0,92980.0,0.24241596]
[1763479990467,0.107647,92983.0,92980.0,0.32997375]
[1763479990670,0.10246,92976.0,92972.0,0.00016127]
[1763479991268,0.00016127,92991.0,92976.0,0.0265]
[1763479991573,0.00016127,92991.0,92981.0,0.24241596]
[1763479991779,0.210109,92981.0,92980.0,0.00219803]
[1763479991974,0.1076387,92990.0,92980.0,0.00219803]
[1763479992174,0.1076387,92990.0,92980.0,0.24461399]
[1763479992672,0.1076435,92986.0,92980.0,0.00219803]
[1763479992875,0.00016127,92991.0,92980.0,0.00219803]
[1763479993372,0.00016127,92991.0,92975.0,0.00011447]
[1763479993373,0.2101148,92976.0,92975.0,0.00011447]
[1763479993575,0.00016127,92991.0,92940.0,0.24241596]
[1763479993576,0.26792,92984.0,92940.0,0.24241596]
[1763479993775,0.1076201,93006.0,92960.0,0.00219803]
[1763479993972,0.1076408,92989.0,92980.0,0.24241596]
[1763479994172,0.1076408,92989.0,92980.0,0.24461399]
[1763479994374,0.1076475,92983.0,92980.0,0.00219803]
[1763479994574,0.1076558,92976.0,92972.0,0.00016137]
[1763479994888,8.451e-05,92982.0,92981.0,0.209189]
[1763479995176,0.00016137,92991.0,92990.0,0.10154]
[1763479995376,0.00016137,92991.0,92990.0,0.10373803]
[1763479995768,0.3754601,93041.0,92990.0,0.00219803]
[1763479995975,0.1076144,93011.0,92990.0,0.24461399]
[1763479996284,0.1075949,93028.0,93000.0,0.24241596]
[1763479996481,1.5,93029.0,93000.0,0.00219803]
[1763479996779,0.00016128,93024.0,93005.0,0.00016128]
[1763479996979,0.00016128,93024.0,93010.0,0.00219803]
[1763479997182,0.1076124,93013.0,93010.0,0.00219803]
[1763479997483,0.00016128,93024.0,93010.0,0.00219803]
[1763479997984,0.1076184,93008.0,93005.0,0.00016128]
[1763479998876,0.1076118,93014.0,93005.0,0.00016128]
[1763479999076,0.2100799,93006.0,93005.0,0.00016128]
[1763479999476,0.1076199,93006.0,93005.0,0.00016128]
[1763479999682,0.1603499,93006.0,93005.0,0.00016128]
[1763479999875,0.2100799,93006.0,93005.0,0.00016128]
[1763480000476,0.1076443,92985.0,92970.0,0.29889105]
[1763480000671,0.1076443,92985.0,92961.0,0.07507339]
[1763480000672,0.08181076,92982.0,92980.0,0.00219803]
[1763480000870,0.1076439,92986.0,92980.0,0.00219803]
[1763480001170,0.02015,93012.0,92980.0,0.00219803]
[1763480001171,0.04445,92981.0,92980.0,0.00219803]
[1763480001377,0.1076469,92983.0,92980.0,0.00219803]
[1763480001873,0.00016128,92991.0,92980.0,0.00219803]
[1763480002184,0.1076489,92981.0,92980.0,0.00219803]
[1763480002484,0.00016128,92991.0,92972.0,0.00016128]
[1763480002485,0.1076581,92973.0,92972.0,0.00016128]
[1763480002783,0.1953081,92973.0,92972.0,0.00016128]
[1763480003185,0.00016128,92991.0,92972.0,0.00016128]
[1763480003381,0.2678,92990.0,92980.0,0.00219803]
[1763480003576,0.00016128,92991.0,92980.0,0.14693444]
[1763480004180,0.1076457,92984.0,92980.0,0.00219803]
[1763480004681,0.00016128,92991.0,92980.0,0.00219803]
[1763480004883,0.00016128,92991.0,92990.0,0.04417]
[1763480005193,0.00016128,92991.0,92990.0,0.00219803]
[1763480005491,0.08781128,92991.0,92990.0,0.00219803]
[1763480005684,0.1076581,92973.0,92972.0,0.00016128]
[1763480005879,0.1076537,92977.0,92972.0,0.00016128]
[1763480006079,0.00016128,92991.0,92972.0,0.00016128]
[1763480006282,0.1952989,92981.0,92980.0,0.00219803]
[1763480007087,0.00016128,92991.0,92980.0,0.00219803]
[1763480007390,0.00016128,92991.0,92990.0,0.08628]
[1763480007584,0.00016128,92991.0,92990.0,0.00219803]
[1763480008088,0.00016128,92991.0,92980.0,0.14473641]
[1763480008089,0.00016128,92991.0,92974.0,0.05647509]
[1763480008281,0.00016128,92991.0,92980.0,0.25458364]
[1763480008482,0.107646,92984.0,92980.0,0.14693444]
[1763480008689,0.1076535,92977.0,92976.0,0.05647509]
[1763480008984,0.1907281,92973.0,92972.0,0.00016128]
[1763480009186,0.1076536,92977.0,92972.0,0.00016128]
[1763480009388,0.1076575,92974.0,92972.0,0.00016128]
[1763480009792,0.04163,92973.0,92972.0,0.00016128]
[1763480010287,0.08307,92973.0,92972.0,0.00016128]
[1763480011088,0.1076581,92973.0,92972.0,0.00016128]
[1763480011484,0.1076515,92979.0,92972.0,0.00016128]
[1763480011794,0.1076576,92974.0,92972.0,0.00016128]
[1763480011984,0.04163,92973.0,92972.0,0.00016128]
[1763480012184,0.08307,92973.0,92972.0,0.00016128]
[1763480013483,0.1076453,92985.0,92972.0,0.00016128]
[1763480013683,0.1076173,93009.0,92980.0,0.00219803]
[1763480013891,0.08307,92981.0,92980.0,0.00219803]
[1763480014099,0.1907281,92973.0,92972.0,0.00016128]
[1763480014295,0.1907281,92973.0,92950.0,0.14473641]
[1763480014296,0.08307,92957.0,92956.0,0.05647509]
[1763480014590,0.1493182,92947.0,92945.0,0.05655838]
[1763480014792,0.1076747,92959.0,92945.0,8.329e-05]
[1763480014991,0.1076559,92975.0,92950.0,0.00219803]
[1763480015186,0.1076752,92959.0,92950.0,0.00219803]
[1763480015499,0.02535,92980.0,92945.0,8.329e-05]
[1763480015500,0.1076894,92946.0,92945.0,0.05671975]
[1763480015792,0.1076894,92946.0,92902.0,0.26772]
[1763480015793,0.08307,92927.0,92926.0,0.05674412]
[1763480015986,0.08307,92927.0,92926.0,0.00026903]
[1763480016184,0.1077334,92908.0,92906.0,0.05647509]
[1763480016385,0.26772,92932.0,92904.0,0.05647509]
[1763480016600,0.08307,92911.0,92910.0,0.00219803]
[1763480016897,0.00010599,92911.0,92910.0,0.00219803]
[1763480017091,0.08317599,92911.0,92910.0,0.00219803]
[1763480017298,0.08317599,92911.0,92901.0,0.00016145]
[1763480017299,0.08307,92902.0,92901.0,0.00016145]
[1763480018291,0.1908278,92887.0,92886.0,0.00026915]
[1763480018795,0.02425,92884.0,92841.0,0.02553]
[1763480018994,0.1077757,92872.0,92850.0,0.00219803]
[1763480019296,0.00016145,92870.0,92860.0,0.14473641]
[1763480019491,0.00016145,92870.0,92860.0,0.14693444]
[1763480019686,0.00016145,92870.0,92860.0,0.00219803]
[1763480019884,0.08307,92861.0,92860.0,0.00219803]
[1763480020089,0.08307,92853.0,92852.0,0.00010875]
[1763480020589,0.08307,92850.0,92849.0,0.00692843]
[1763480020791,0.04144,92850.0,92820.0,0.17026641]
[1763480021096,0.02424,92851.0,92830.0,0.00219803]
[1763480021290,0.08307,92831.0,92830.0,0.00219803]
[1763480021495,0.08307,92831.0,92808.0,0.1078493]
[1763480021496,0.04163,92827.0,92810.0,0.14473641]
[1763480021690,0.00011979,92831.0,92830.0,0.00219803]
[1763480022092,0.08307,92827.0,92804.0,0.00380683]
[1763480022289,0.08307,92827.0,92813.0,0.01182433]
[1763480023091,0.00011979,92831.0,92830.0,0.00219803]
[1763480023295,0.08307,92827.0,92813.0,0.01182433]
[1763480023501,0.02133,92828.0,92759.0,0.02553]
[1763480023694,0.02133,92828.0,92800.0,0.00219803]
[1763480023994,0.1068485,92809.0,92804.0,0.01539542]
[1763480024195,0.04163,92805.0,92804.0,0.01539542]
[1763480024495,0.107881,92781.0,92760.0,0.14473641]
[1763480024698,0.107889,92774.0,92770.0,0.00219803]
[1763480024893,0.00013947,92773.0,92770.0,0.00219803]
[1763480025494,0.00013947,92773.0,92772.0,0.08628]
[1763480025700,0.00013947,92773.0,92770.0,0.00219803]
[1763480026400,0.14473641,92830.0,92786.0,0.04145]
[1763480026701,0.1078383,92818.0,92800.0,0.00219803]
[1763480026889,1.5,92817.0,92800.0,0.14693444]
[1763480027293,1.5,92817.0,92800.0,0.00219803]
[1763480027496,0.1078487,92809.0,92800.0,0.00219803]
[1763480027697,0.1078471,92811.0,92800.0,0.00219803]
[1763480027892,9.725e-05,92816.0,92800.0,0.00219803]
[1763480028093,0.1078433,92814.0,92800.0,0.00219803]
[1763480028398,0.1078573,92802.0,92800.0,0.00219803]
[1763480028599,9.725e-05,92816.0,92800.0,0.00219803]
[1763480028600,0.1078507,92807.0,92800.0,0.00219803]
[1763480028896,9.725e-05,92816.0,92800.0,0.00219803]
[1763480029089,0.1078476,92810.0,92800.0,0.14693444]
[1763480029490,9.725e-05,92816.0,92800.0,0.14693444]
[1763480029491,9.725e-05,92816.0,92800.0,0.00219803]
[1763480029696,9.725e-05,92816.0,92799.0,0.00016163]
[1763480029697,0.1078588,92800.0,92799.0,0.00016163]
[1763480030197,0.1078588,92800.0,92787.0,0.08677111]
[1763480030198,0.1909428,92788.0,92787.0,0.08677111]
[1763480030496,0.19104799,92788.0,92787.0,0.08677111]
[1763480030704,0.10789,92774.0,92770.0,0.00219803]
[1763480031298,0.00016163,92781.0,92770.0,0.00219803]
[1763480031501,0.10804263,92781.0,92770.0,0.14693444]
[1763480031697,0.1078921,92772.0,92770.0,0.00219803]
[1763480031902,0.1078921,92772.0,92755.0,0.01170532]
[1763480032196,0.1078833,92779.0,92760.0,0.00219803]
[1763480032396,0.1078915,92772.0,92760.0,0.00219803]
[1763480032594,0.10804343,92781.0,92760.0,0.14693444]
[1763480032793,0.00016163,92781.0,92760.0,0.00219803]
[1763480033000,0.1078993,92766.0,92760.0,0.00219803]
[1763480033197,0.10804333,92781.0,92760.0,0.00219803]
[1763480033402,0.00016163,92781.0,92761.0,0.1079033]
[1763480033604,0.1078863,92777.0,92770.0,0.00219803]
[1763480033805,0.1078922,92772.0,92770.0,0.00219803]
[1763480034117,0.1078941,92770.0,92760.0,0.00219803]
[1763480034292,0.08307,92771.0,92770.0,0.001]
[1763480034492,0.1909625,92771.0,92770.0,0.001]
[1763480034899,0.00016163,92781.0,92770.0,0.00319803]
[1763480035205,0.1078922,92772.0,92770.0,0.00219803]
[1763480035404,0.1078922,92772.0,92770.0,0.00319803]
[1763480035908,0.1078867,92777.0,92770.0,0.00319803]
[1763480036111,0.1078925,92771.0,92770.0,0.00319803]
[1763480036402,0.1078925,92771.0,92770.0,0.08947803]
[1763480036595,0.00016163,92781.0,92777.0,0.08628]
[1763480037400,0.00016163,92781.0,92770.0,0.00319803]
[1763480037706,0.00016163,92781.0,92770.0,0.00219803]
[1763480037902,0.00016163,92781.0,92770.0,0.00319803]
[1763480038309,0.1078911,92773.0,92770.0,0.00319803]
[1763480038808,0.1078863,92777.0,92770.0,0.00319803]
[1763480039009,0.10804353,92781.0,92770.0,0.00319803]
[1763480039210,0.107885,92778.0,92770.0,0.00319803]
[1763480039408,0.00016163,92781.0,92780.0,0.08407]
[1763480039606,0.00016163,92781.0,92780.0,0.08626803]
[1763480039908,0.00010519,92788.0,92787.0,0.08407]
[1763480040099,0.1078749,92787.0,92770.0,0.14573641]
[1763480040300,0.00010519,92788.0,92787.0,0.08407]
[1763480040496,0.08515519,92788.0,92770.0,0.14573641]
[1763480040696,0.08505,92781.0,92770.0,0.00335966]
[1763480040896,0.1078925,92771.0,92770.0,0.00335966]
[1763480041097,0.00026682,92788.0,92770.0,0.00335966]
[1763480041301,0.00026682,92788.0,92771.0,0.107892]
[1763480041502,0.1078739,92787.0,92780.0,0.00219803]
[1763480041802,0.00026682,92788.0,92781.0,0.1078809]
[1763480042004,0.00026682,92788.0,92787.0,0.08407]
[1763480042312,0.10813962,92788.0,92787.0,0.08407]
[1763480042507,0.00026682,92788.0,92787.0,0.16965916]
[1763480042705,0.10813962,92788.0,92787.0,0.08407]
[1763480043008,0.00026682,92788.0,92778.0,0.02387]
[1763480043209,0.1078805,92782.0,92780.0,0.00319803]
[1763480043605,0.107876,92786.0,92780.0,0.00319803]
[1763480043807,0.1078797,92783.0,92780.0,0.00319803]
[1763480044508,0.1078797,92783.0,92770.0,0.00016163]
[1763480044509,0.08505,92771.0,92770.0,0.00016163]
[1763480044710,0.08505,92771.0,92755.0,0.00012833]
[1763480044711,0.19296,92756.0,92755.0,0.00012833]
[1763480044908,0.19309773,92756.0,92755.0,0.00012833]
[1763480045213,0.1079321,92737.0,92720.0,0.16860641]
[1763480045401,0.1079441,92727.0,92726.0,0.08407]
[1763480045607,0.1079441,92727.0,92726.0,0.18214682]
[1763480045807,0.00016172,92736.0,92730.0,0.00219803]
[1763480046007,0.00013773,92756.0,92755.0,0.08407]
[1763480046413,0.00013773,92756.0,92750.0,0.00219803]
[1763480046910,0.1079111,92755.0,92750.0,0.00219803]
[1763480047113,0.10804803,92756.0,92754.0,0.04118]
[1763480047306,0.10804803,92756.0,92750.0,0.00219803]
[1763480047508,0.1079141,92753.0,92750.0,0.00219803]
[1763480047710,0.04053,92744.0,92743.0,0.00016172]
[1763480047915,0.1079216,92746.0,92743.0,0.00016172]
[1763480048117,0.1079221,92746.0,92743.0,0.00016172]
[1763480048510,0.04053,92744.0,92743.0,0.00016172]
[1763480048713,0.08505,92744.0,92743.0,0.00016172]
[1763480048919,0.00013773,92756.0,92743.0,0.00016172]
[1763480049127,0.00013773,92756.0,92750.0,0.00219803]
[1763480049319,0.00013773,92756.0,92755.0,0.08407]
[1763480049616,1e-08,92762.0,92761.0,0.08407]
[1763480049812,0.1078614,92798.0,92761.0,0.1919732]
[1763480050014,0.26796,92808.0,92770.0,0.14693444]
[1763480050212,0.1078519,92806.0,92774.0,0.02387]
[1763480050419,8.918e-05,92805.0,92780.0,0.00219803]
[1763480050719,0.00016172,92802.0,92783.0,0.00016172]
[1763480050922,0.00016172,92802.0,92790.0,0.14693444]
[1763480051220,0.00016172,92802.0,92801.0,0.08407]
[1763480051518,8.918e-05,92805.0,92796.0,0.02387]
[1763480051519,8.918e-05,92805.0,92804.0,0.08407]
[1763480051715,0.1078541,92804.0,92800.0,0.00219803]
[1763480051912,0.1078636,92796.0,92790.0,0.00219803]
[1763480052108,0.1078691,92792.0,92790.0,0.00219803]
[1763480052526,0.1929274,92784.0,92783.0,0.00016172]
[1763480052815,0.1929448,92769.0,92758.0,0.07507339]
[1763480053019,0.00012577,92768.0,92740.0,0.00219803]
[1763480053205,0.1079202,92748.0,92740.0,0.00219803]
[1763480053413,0.1079217,92746.0,92740.0,0.00219803]
[1763480053720,0.00016172,92752.0,92740.0,0.36299803]
[1763480053922,0.46787242,92756.0,92740.0,0.50773444]
[1763480054219,0.3608,92767.0,92748.0,0.3608]
[1763480054417,0.00012577,92768.0,92767.0,0.08407]
[1763480054612,0.1079134,92753.0,92752.0,0.3608]
[1763480055421,0.1079134,92753.0,92750.0,0.00219803]
[1763480055726,0.00016172,92762.0,92752.0,0.3608]
[1763480056316,0.00016172,92762.0,92751.0,0.3608]
[1763480056624,0.1079042,92761.0,92751.0,0.3608]
[1763480056813,0.00016172,92762.0,92751.0,0.3608]
[1763480057124,0.1079121,92755.0,92751.0,0.3608]
[1763480057318,0.1079158,92751.0,92750.0,0.00219803]
[1763480057513,0.1079134,92754.0,92750.0,0.00219803]
[1763480057725,0.00016172,92762.0,92761.0,0.08407]
[1763480058420,0.00016172,92762.0,92760.0,0.00219803]
[1763480058614,0.10806532,92762.0,92760.0,0.00219803]
[1763480059110,0.00016172,92762.0,92760.0,0.00219803]
[1763480059320,0.00016172,92762.0,92761.0,0.04118]
[1763480059618,0.1079041,92761.0,92760.0,0.00219803]
[1763480059924,0.00016172,92762.0,92761.0,0.08407]
[1763480061218,0.00016172,92762.0,92761.0,0.44487]
[1763480061520,0.00012577,92768.0,92761.0,0.3608]
[1763480061721,0.107903,92762.0,92760.0,0.00219803]
[1763480061911,0.1380639,92744.0,92741.0,0.07507339]
[1763480062111,0.1380639,92744.0,92734.0,0.3608]
[1763480062112,0.01507,92744.0,92740.0,0.00219803]
[1763480062317,0.1079239,92744.0,92740.0,0.00219803]
[1763480062717,0.1079239,92744.0,92726.0,0.3608]
[1763480062718,0.1079437,92727.0,92726.0,0.3608]
[1763480062911,0.1079495,92722.0,92721.0,0.03787741]
[1763480063315,0.4687495,92722.0,92721.0,0.00012741]
[1763480063513,0.107967,92707.0,92694.0,0.3608]
[1763480063713,0.1079718,92703.0,92694.0,0.3608]
[1763480064023,0.3608,92695.0,92675.0,0.3608]
[1763480064222,0.3608,92687.0,92675.0,0.3608]
[1763480064423,0.1079963,92682.0,92680.0,0.00219803]
[1763480064723,0.0001042,92686.0,92675.0,0.3608]
[1763480064926,0.1079996,92680.0,92675.0,0.3608]
[1763480065219,0.1080089,92671.0,92670.0,0.00219803]
[1763480065415,0.4688034,92676.0,92670.0,0.00219803]
[1763480065619,0.3608,92676.0,92670.0,0.00219803]
[1763480065818,0.0001042,92686.0,92685.0,0.0752]
[1763480066224,0.0001042,92686.0,92680.0,0.00219803]
[1763480066225,0.1079926,92685.0,92680.0,0.00219803]
[1763480066418,0.1079985,92680.0,92670.0,0.00219803]
[1763480066814,0.1080041,92676.0,92670.0,0.00219803]
[1763480067013,0.3608,92681.0,92668.0,0.00016181]
[1763480067014,0.01507,92669.0,92668.0,0.00016181]
[1763480067212,0.02653,92669.0,92668.0,0.00016181]
[1763480067422,0.1080118,92669.0,92642.0,0.01158297]
[1763480067624,0.3608,92661.0,92650.0,0.00219803]
[1763480067825,0.00010052,92660.0,92653.0,0.3608]
[1763480068019,0.00010052,92660.0,92659.0,0.07472]
[1763480068327,0.3608,92691.0,92670.0,0.001]
[1763480068624,0.1079914,92687.0,92680.0,0.00219803]
[1763480068829,0.00016181,92690.0,92680.0,0.00219803]
[1763480069027,0.1079949,92684.0,92680.0,0.00219803]
[1763480069332,0.1079961,92682.0,92680.0,0.00219803]
[1763480069527,0.1080066,92673.0,92671.0,0.00016181]
[1763480069824,0.38772,92672.0,92671.0,0.00016181]
[1763480070024,0.38772,92672.0,92639.0,0.3608]
[1763480070025,0.108035,92649.0,92639.0,0.3608]
[1763480070232,0.00012604,92648.0,92640.0,0.00219803]
[1763480070429,0.00012604,92648.0,92647.0,0.39904]
[1763480070727,0.00012604,92648.0,92647.0,0.3608]
[1763480070929,0.1080245,92658.0,92653.0,0.00087396]
[1763480071128,0.0001619,92657.0,92653.0,0.00087396]
[1763480071326,0.3608,92654.0,92653.0,0.07559396]
[1763480071528,0.1080264,92656.0,92653.0,0.03911396]
[1763480071728,0.1080264,92656.0,92653.0,0.00087396]
[1763480071929,9.374e-05,92655.0,92653.0,0.00087396]
[1763480072118,0.0246,92651.0,92650.0,0.00219803]
[1763480072323,0.0123,92644.0,92628.0,0.01185488]
[1763480072629,0.0123,92644.0,92619.0,0.3608]
[1763480072630,0.26796,92644.0,92619.0,0.3608]
[1763480072831,0.3608,92635.0,92620.0,0.00219803]
[1763480073020,0.1080619,92626.0,92620.0,0.00219803]
[1763480073218,0.1080644,92624.0,92620.0,0.00219803]
[1763480073421,7.882e-05,92623.0,92620.0,0.00219803]
[1763480074219,0.10814422,92623.0,92620.0,0.00219803]
[1763480074420,7.882e-05,92623.0,92622.0,0.07472]
[1763480074626,0.0001619,92637.0,92636.0,0.07472]
[1763480074929,0.0001619,92637.0,92636.0,0.03824]
[1763480075134,0.3608,92647.0,92640.0,0.00219803]
[1763480075324,0.1080415,92644.0,92640.0,0.00219803]
[1763480075526,0.0123,92631.0,92630.0,0.00219803]
[1763480075825,0.3608,92637.0,92630.0,0.00219803]
[1763480076027,0.00012984,92643.0,92630.0,0.00219803]
[1763480076028,0.1080481,92638.0,92630.0,0.00219803]
[1763480076227,0.1080529,92634.0,92630.0,0.00219803]
[1763480076632,0.00029174,92643.0,92630.0,0.00219803]
[1763480076828,0.10833344,92643.0,92630.0,0.00219803]
[1763480077031,0.00029174,92643.0,92636.0,0.3608]
[1763480077231,0.00029174,92643.0,92642.0,0.07472]
[1763480077435,0.1080427,92642.0,92640.0,0.00219803]
[1763480077632,0.1080591,92628.0,92627.0,0.0851665]
[1763480077841,0.1080591,92628.0,92625.0,0.0001619]
[1763480078222,0.0246,92626.0,92625.0,0.0001619]
[1763480078423,0.0246,92626.0,92596.0,0.3608]
[1763480078424,0.1080836,92607.0,92596.0,0.3608]
[1763480078728,9.8e-05,92607.0,92606.0,0.07498996]
[1763480079031,0.3608,92623.0,92610.0,0.00219803]
[1763480079233,0.3608,92615.0,92610.0,0.00219803]
[1763480079429,0.0001619,92622.0,92610.0,0.00219803]
[1763480079832,7.605e-05,92621.0,92613.0,0.3608]
[1763480080026,7.605e-05,92621.0,92620.0,0.06097]
[1763480080231,7.605e-05,92621.0,92620.0,0.09964803]
[1763480080434,7.605e-05,92621.0,92620.0,0.00219803]
[1763480080738,7.605e-05,92621.0,92620.0,0.09964803]
[1763480083429,0.3608,92634.0,92620.0,0.09964803]
[1763480083430,0.3608,92647.0,92620.0,0.36764803]
[1763480083733,0.3608,92657.0,92646.0,0.03824]
[1763480084035,0.3608,92657.0,92650.0,0.00219803]
[1763480084532,0.0001619,92663.0,92656.0,0.07472]
[1763480084736,0.0001619,92663.0,92662.0,0.07472]
[1763480085137,0.0001619,92663.0,92660.0,0.00219803]
[1763480085138,0.1080194,92662.0,92660.0,0.00219803]
[1763480085328,0.0246,92661.0,92660.0,0.00219803]
[1763480085636,0.0001619,92663.0,92660.0,0.00219803]
[1763480085931,0.0001619,92663.0,92662.0,0.07472]
[1763480086135,0.0001619,92663.0,92660.0,0.00219803]
[1763480086329,0.0001619,92663.0,92662.0,0.07472]
[1763480086523,0.3608,92681.0,92662.0,0.07472]
[1763480086725,0.3608,92681.0,92652.0,0.02273]
[1763480086726,0.80870315,92663.0,92652.0,0.02273]
[1763480086935,0.3608,92610.0,92575.0,0.01158479]
[1763480087236,0.00219803,92590.0,92586.0,0.04172]
[1763480087433,0.1081046,92589.0,92586.0,0.04172]
[1763480087738,0.8297069,92587.0,92586.0,0.04172]
[1763480088033,0.8297069,92587.0,92586.0,0.268]
[1763480088233,0.8297069,92587.0,92577.0,0.00016201]
[1763480088634,0.8297069,92587.0,92580.0,0.00073267]
[1763480088940,0.8297069,92587.0,92586.0,0.268]
[1763480089429,0.8297069,92587.0,92586.0,0.34272]
[1763480089430,0.7216,92587.0,92586.0,0.34272]
[1763480089626,0.7216,92587.0,92586.0,0.07472]
[1763480089828,0.7216,92587.0,92586.0,0.30624]
[1763480090034,0.8297074,92587.0,92586.0,0.268]
[1763480090235,0.7216,92587.0,92586.0,0.268]
[1763480090433,0.7216,92587.0,92586.0,0.34272]
[1763480090839,0.1081081,92586.0,92585.0,0.00108984]
[1763480091028,0.1081081,92586.0,92585.0,8.984e-05]
[1763480091939,0.1081081,92586.0,92585.0,0.26812984]
[1763480092647,0.1081081,92586.0,92585.0,0.07480984]
[1763480092941,0.1081081,92586.0,92585.0,0.34284984]
[1763480093634,0.1081081,92586.0,92585.0,0.07480984]
[1763480093936,0.1081081,92586.0,92585.0,8.984e-05]
[1763480094732,0.7216,92587.0,92552.0,0.66036209]